Workbook

Sheet SAC
A1: Schmidt-Appleman-Criterion (SAC)
A2: This file: | B2: https://purl.org/aero/SAC
E3: Magnus-Equation
A4: a_w | B4: 611.2 | C4: Pa
A5: b_w | B5: 17.62
A6: c_w | B6: 243.12 | C6: °C
A7: a_i | B7: 611.2 | C7: Pa
A8: b_i | B8: 22.46
A9: c_i | B9: 272.62 | C9: °C
E10: https://de.wikipedia.org/wiki/Sättigungsdampfdruck#Berechnung_des_Sättigungsdampfdrucks_von_Wasser_über_die_Magnus-Formel
E11: https://en.wikipedia.org/wiki/Vapour_pressure_of_water | J11: contains also alternative equations
A12: t | B12: -43.93614253 | C12: °C | E12: No contrail above this temperatur
A13: E_w' | B13: =a_w*b_w*c_w*EXP(b_w*t/(c_w+t))/(c_w+t)^2 -> 1.353810219 | C13: Pa/°C
A14: E_w' - G | B14: =E_w_strich-G -> 7.656918319e-07 | C14: Pa/°C | E14: <= drive to Zero with the Solver (settings on the right) | J14: = a_w*b_w*c_w*EXP(b_w*t/(c_w+t))/(c_w+t)^2-G
A15: E_w | B15: =a_w*EXP(b_w*t/(c_w+t)) -> 12.5383236 | C15: Pa | J15: = a_w*EXP(b_w*t/(c_w+t))
A16: E_i | B16: =a_i*EXP(b_i*t/(c_i+t)) -> 8.168387769 | C16: Pa | J16: = a_i*EXP(b_i*t/(c_i+t))
A18: L | B18: 0.0019812 | C18: °C/ft
A19: t_0 | B19: 15 | C19: °C
A20: k_a | B20: 6.8756e-06 | C20: 1/ft | E20: Constants of the ISA, Scholz
A21: k_b | B21: 4.80634e-05 | C21: 1/ft
A22: k_exp | B22: 5.25588
A23: H_T | B23: 36089 | C23: ft
A24: p_0 | B24: 101315 | C24: Pa
A25: p_T | B25: 22632 | C25: Pa
A27: H | B27: 40000 | C27: ft | E27: Input of the flight altitude
A29: p | B29: =IF(H<H_T,p_0*(1-k_a*H)^k_exp,p_T*EXP(-k_b*(H-H_T))) -> 18753.65894 | C29: Pa | E29: Pressure from the ISA, Scholz | J29: = WENN(H<H_T;p_0*(1-k_a*H)^k_exp;p_T*EXP(-k_b*(H-H_T)))
D30: Kerosine:
A31: EI_H2O | B31: 1.25 | D31: 1.25 | E31: Data for the fuel
A32: c_p | B32: 1004 | C32: J/(kgK) | D32: 1004
A33: eps | B33: 0.622 | D33: 0.622 | H33: GIERENS, Klaus, et al.,2008. A Review of Various Strategies for Contrail Avoidance. In: OASC, vol.2, pp. 1-7.
A34: Q | B34: 43000000 | C34: J/kg | D34: 43000000 | H34: https://doi.org/10.2174/1874282300802010001
A35: eta | B35: 0.35 | D35: 0.35
A37: G | B37: =EI_H2O*p*c_p/(eps*Q*(1-eta)) -> 1.353809453 | C37: Pa/°C | E37: = EI_H2O*p*c_p/(eps*Q*(1-eta))
A38: t_Schumann | B38: =-46+9.43*LN(G-0.053)+0.72*(LN(G-0.053))^2 -> -43.47023851 | C38: °C | E38: = -46+9,43*LN(G-0,053)+0,72*(LN(G-0,053))^2 | I38: Approximate equation from Schumann 1996 (https://elib.dlr.de/32128), Schumann 2000 (https://elib.dlr.de/9281)
A39: t_Scholz | B39: =a_SLZ*LN(G)^2+b_SLZ*LN(G)+c_SLZ -> -43.85853486 | E39: = a_SLZ*LN(G)^2+b_SLZ*LN(G)+c_SLZ | I39: See on Tab "t_SAC". Parameters are similar to those from Schumann.
A40: G0 | B40: =E_w-G*t -> 72.01948871 | C40: Pa | E40: = E_w-G*t
A41: f(t) | B41: =G*t+G0 -> 12.5383236 | C41: Pa | E41: = G*t+G0
A42: f(t)=E_w(t) ? | B42: =IF(E_w=f_of_t,"true","false") -> true | E42: Check of calculation must be "true"!
A44: t | B44: E_w | C44: E_i | D44: G*t+G0 | E44: phi = E_i/E_w
A45: -60 | B45: =a_w*EXP(b_w*A45/(c_w+A45)) -> 1.900583233 | C45: =a_i*EXP(b_i*A45/(c_i+A45)) -> 1.080426989 | D45: =G*A45+G0 -> -9.209078489 | E45: =C45/B45 -> 0.568471283
A46: -59 | B46: 2.158072029 | C46: 1.236353246 | D46: -7.855269036 | E46: 0.5728971182
A47: -58 | B47: 2.447083757 | C47: 1.413006415 | D47: -6.501459583 | E47: 0.5774246227
A48: -57 | B48: 2.771055336 | C48: 1.612900943 | D48: -5.147650129 | E48: 0.5820529535
A49: -56 | B49: 3.133750611 | C49: 1.838826317 | D49: -3.793840676 | E49: 0.5867813192
A50: -55 | B50: 3.539286647 | C50: 2.09387375 | D50: -2.440031223 | E50: 0.5916089764
A51: -54 | B51: 3.992161715 | C51: 2.381465097 | D51: -1.08622177 | E51: 0.5965352277
A52: -53 | B52: 4.497285042 | C52: 2.705384175 | D52: 0.2675876837 | E52: 0.6015594187
A53: -52 | B53: 5.060008421 | C53: 3.069810642 | D53: 1.621397137 | E53: 0.6066809355
A54: -51 | B54: 5.686159738 | C54: 3.47935661 | D54: 2.97520659 | E54: 0.6118992027
A55: -50 | B55: 6.382078525 | C55: 3.939106181 | D55: 4.329016043 | E55: 0.6172136813
A56: -49 | B56: 7.154653595 | C56: 4.454658083 | D56: 5.682825497 | E56: 0.6226238662
A57: -48 | B57: 8.011362866 | C57: 5.032171629 | D57: 7.03663495 | E57: 0.628129285
A58: -47 | B58: 8.960315452 | C58: 5.678416191 | D58: 8.390444403 | E58: 0.6337294955
A59: -46 | B59: 10.0102961 | C59: 6.400824417 | D59: 9.744253856 | E59: 0.6394240845
A60: -45 | B60: 11.17081206 | C60: 7.207549432 | D60: 11.09806331 | E60: 0.6452126661
A61: -44 | B61: 12.45214253 | C61: 8.107526251 | D61: 12.45187276 | E61: 0.6510948802
A62: -43 | B62: 13.86539066 | C62: 9.110537663 | D62: 13.80568222 | E62: 0.6570703909
A63: -42 | B63: 15.4225383 | C63: 10.22728486 | D63: 15.15949167 | E63: 0.6631388853
A64: -41 | B64: 17.13650356 | C64: 11.46946307 | D64: 16.51330112 | E64: 0.6693000723
A65: -40 | B65: 19.02120121 | C65: 12.8498425 | D65: 17.86711058 | E65: 0.6755536813
A66: -39 | B66: 21.09160616 | C66: 14.38235488 | D66: 19.22092003 | E66: 0.6818994611
A67: -38 | B67: 23.36381992 | C67: 16.08218589 | D67: 20.57472948 | E67: 0.6883371788
A68: -37 | B68: 25.85514027 | C68: 17.9658739 | D68: 21.92853894 | E68: 0.6948666189
A69: -36 | B69: 28.58413421 | C69: 20.05141519 | D69: 23.28234839 | E69: 0.701487582
A70: -35 | B70: 31.57071426 | C70: 22.35837619 | D70: 24.63615784 | E70: 0.7081998844
A71: -34 | B71: 34.83621814 | C71: 24.9080129 | D71: 25.9899673 | E71: 0.7150033567
A72: -33 | B72: 38.4034921 | C72: 27.72339813 | D72: 27.34377675 | E72: 0.7218978435
A73: -32 | B73: 42.29697778 | C73: 30.8295566 | D73: 28.6975862 | E73: 0.7288832021
A74: -31 | B74: 46.54280284 | C74: 34.2536087 | D74: 30.05139566 | E74: 0.7359593022
A75: -30 | B75: 51.16887541 | C75: 38.02492298 | D75: 31.40520511 | E75: 0.7431260249
A76: -29 | B76: 56.20498237 | C76: 42.17527803 | D76: 32.75901456 | E76: 0.7503832622
A77: -28 | B77: 61.6828917 | C77: 46.73903406 | D77: 34.11282402 | E77: 0.7577309164
A78: -27 | B78: 67.63645884 | C78: 51.75331476 | D78: 35.46663347 | E78: 0.7651688993
A79: -26 | B79: 74.10173722 | C79: 57.2581998 | D79: 36.82044292 | E79: 0.7726971317
A80: -25 | B80: 81.11709306 | C80: 63.29692853 | D80: 38.17425237 | E80: 0.7803155431
A87: Minimum Relative Humidity for Persistent Contrails
A88: according to Gierens (2008)
A91: exact: | B91: RH_min = E_i(t) / E_w(t)
A93: approx.: | B93: RH_min = RH_a*t + RH_b
B95: RH_a | C95: 0.0060586 | D95: 1/°C
B96: RH_b | C96: 0.92261
B108: This according to:
B109: GIERENS, Klaus, et al.,2008. A Review of Various Strategies for Contrail Avoidance. In: OASC, vol.2, pp. 1-7.
B110: https://doi.org/10.2174/1874282300802010001
A113: Checking the Influence of the Altitude of the Tropopause on Pressure
A115: p(H, H_T) | B115: hPa | C115: p_0 = | D115: =p_0/100 -> 1013.15 | E115: hPa
A117: H | B117: ft | D117: 20000 | E117: 25000 | F117: 30000 | G117: 35000 | H117: 36089 | I117: 40000 | J117: 45000 | K117: 50000 | L117: 55000 | M117: 60000 | N117: 65000 | O117: 70000 | Q117: title of legend
A118: H_T | B118: ft | C118: 20000 | D118: =IF(D$117<$C118,p_0*(1-k_a*D$117)^k_exp,p_0*(1-k_a*$C118)^k_exp*EXP(-k_b*(D$117-$C118)))/100 -> 465.5856098 | E118: 366.1265319 | F118: 287.9140475 | G118: 226.4094282 | H118: 214.8637157 | I118: 178.0435155 | J118: 140.0095997 | K118: 110.1005445 | L118: 86.58070539 | M118: 68.08520866 | N118: 53.54074695 | O118: 42.10329439 | Q118: H_T = 20000 ft
C119: 36089 | D119: 465.5856098 | E119: 375.9709234 | F119: 300.8650576 | G119: 238.3983567 | H119: 226.2998304 | I119: 187.5198761 | J119: 147.4616063 | K119: 115.9606426 | L119: 91.18896078 | M119: 71.7090418 | N119: 56.39045157 | O119: 44.34424095 | Q119: H_T = 36089 ft
C120: 50000 | D120: 465.5856098 | E120: 375.9709234 | F120: 300.8650576 | G120: 238.3983567 | H120: 226.2998304 | I120: 186.8751299 | J120: 144.7642431 | K120: 110.6898191 | L120: 87.0440983 | M120: 68.44961089 | N120: 53.82730505 | O120: 42.32863753 | Q120: H_T = 50000 ft
C121: 70000 | D121: 465.5856098 | E121: 375.9709234 | F121: 300.8650576 | G121: 238.3983567 | H121: 226.2998304 | I121: 186.8751299 | J121: 144.7642431 | K121: 110.6898191 | L121: 83.42204998 | M121: 61.86812628 | N121: 45.06328667 | O121: 32.16199373 | Q121: H_T = 70000 ft
A125: Result:
A126: The influence of the altitude of the tropopause, H_T on the pressure is small!
A128: Further approach:
A129: The SAC and SAD is calculated with a standard H_T = 36089 ft,
A130: even if later the SAD is evaluated for the temperatures of various other H_T.

Sheet t_SAC
A1: Calculating t_SAC for the Schmidt-Appleman-Criterion (SAC)
A3: Derivation of the Approximate-Analytical Solution | E3: H [ft] | F3: p [Pa] | G3: G [Pa/°C] | H3: ln(G) | I3: t_1 [°C] | J3: t_2 [°C] | K3: t_3 [°C] | L3: t_4 [°C]
A4: a_w | B4: =a_w -> 611.2 | C4: Pa | E4: 10000 | F4: =IF(H<H_T,p_0*(1-k_a*E4)^k_exp,p_T*EXP(-k_b*(E4-H_T))) -> 79304.18302 | G4: =EI_H2O*F4*c_p/(eps*Q*(1-eta)) -> 5.7248963 | H4: =LN(G4) -> 1.744824436 | I4: =b_w*c_w/(b_w-LN($G4*(c_w+t_init)^2/(a_w*b_w*c_w)))-c_w -> -29.20504511 | J4: =b_w*c_w/(b_w-LN($G4*(c_w+I4)^2/(a_w*b_w*c_w)))-c_w -> -28.09302436 | K4: -27.98103912 | L4: -27.9697874
A5: b_w | B5: =b_w -> 17.62 | E5: 15000 | F5: 62363.10763 | G5: 4.501935592 | H5: =LN(G5) -> 1.504507436 | I5: -31.74168883 | J5: -30.90706337 | K5: -30.82417532 | L5: -30.81595784
A6: c_w | B6: =c_w -> 243.12 | C6: °C | E6: 20000 | F6: 49041.0095 | G6: 3.540225536 | H6: 1.264190436 | I6: -34.21887759 | J6: -33.64551879 | K6: -33.58935292 | L6: -33.5838576
E7: 25000 | F7: 38564.79743 | G7: 2.783957387 | H7: 1.023873436 | I7: -36.63867746 | J7: -36.31145641 | K7: -36.27983193 | L7: -36.27677771
A8: EI_H2O | B8: =EI_H2O -> 1.25 | E8: 30000 | F8: 30326.52908 | G8: 2.189244344 | H8: 0.7835564358 | I8: -39.0030599 | J8: -38.90777656 | K8: -38.89868952 | L8: -38.89782308
A9: c_p | B9: =c_p -> 1004 | C9: J/(kgK) | E9: 35000 | F9: 23848.13165 | G9: 1.72157477 | H9: 0.5432394358 | I9: -41.31390708 | J9: -41.4372252 | K9: -41.44883277 | L9: -41.44992566
A10: eps | B10: =eps -> 0.622 | E10: 40000 | F10: 18753.65894 | G10: 1.353809453 | H10: 0.3029224358 | I10: -43.5730169 | J10: -43.90240409 | K10: -43.9330105 | L10: -43.93585651
A11: Q | B11: =Q -> 43000000 | C11: J/kg | E11: 45000 | F11: 14747.47492 | G11: 1.064606701 | H11: 0.06260543582 | I11: -45.78210764 | J11: -46.30578024 | K11: -46.35382396 | L11: -46.35823689
A12: eta | B12: =eta -> 0.35 | E12: 50000 | F12: 11597.09779 | G12: 0.8371838625 | H12: -0.1777115642 | I12: -47.94282231 | J12: -48.64969456 | K12: -48.71373679 | L12: -48.71954839
E13: 55000 | F13: 9119.708826 | G13: 0.6583434231 | H13: -0.4180285642 | I13: -50.05673277 | J13: -50.93636986 | K13: -51.01508412 | L13: -51.02214226
A14: k_a | B14: =k_a -> 6.8756e-06 | C14: 1/ft | E14: 60000 | F14: 7171.543308 | G14: 0.5177071396 | H14: -0.6583455642 | I14: -52.1253435 | J14: -53.16791829 | K14: -53.26008091 | L14: -53.268248
A15: k_b | B15: =k_b -> 4.80634e-05 | C15: 1/ft | E15: 65000 | F15: 5639.547753 | G15: 0.4071137844 | H15: -0.8986625642 | I15: -54.15009516 | J15: -55.34634818 | K15: -55.45082974 | L15: -55.45998127
A16: k_exp | B16: =k_exp -> 5.25588 | E16: 70000 | F16: 4434.819325 | G16: 0.3201455432 | H16: -1.138979564 | I16: -56.13236799 | J16: -57.47357034 | K16: -57.5893279 | L16: -57.59935117
A17: H_T | B17: =H_T -> 36089 | C17: ft | E17: 75000 | F17: 3487.446744 | G17: 0.2517555847 | H17: -1.379296564 | I17: -58.07348491 | J17: -59.55140402 | K17: -59.677474 | L17: -59.68826695
A18: p_0 | B18: =p_0 -> 101315 | C18: Pa | E18: 80000 | F18: 2742.453278 | G18: 0.197975189 | H18: -1.619613564 | I18: -59.97471446 | J18: -61.58158233 | K18: -61.71707408 | L18: -61.72854428
A19: p_T | B19: =p_T -> 22632 | C19: Pa
A21: t_init | B21: -40 | C21: °C | G21: G [Pa/°C] | H21: ln(G) | I21: t_1 [°C] | J21: t_2 [°C] | K21: t_3 [°C] | L21: t_4 [°C] | M21: t_SLZ [°C]
G22: 0.025 | H22: =LN(G22) -> -3.688879454 | I22: =b_w*c_w/(b_w-LN($G22*(c_w+t_init)^2/(a_w*b_w*c_w)))-c_w -> -74.86028863 | J22: =b_w*c_w/(b_w-LN($G22*(c_w+I22)^2/(a_w*b_w*c_w)))-c_w -> -77.31279511 | K22: -77.50104353 | L22: -77.51559008 | M22: =a_SLZ*H22^2+b_SLZ*H22+c_SLZ -> -77.10300092
A23: Approximate-Analytical Solution | G23: 0.05 | H23: =LN(G23) -> -2.995732274 | I23: -70.15108946 | J23: -72.3668141 | K23: -72.54213724 | L23: -72.55609149 | M23: -72.52727811
G24: 0.075 | H24: =LN(G24) -> -2.590267165 | I24: -67.27215352 | J24: -69.32930114 | K24: -69.49507772 | L24: -69.50850839 | M24: -69.61746378
G25: 0.1 | H25: =LN(G25) -> -2.302585093 | I25: -65.17070119 | J25: -67.10535226 | K25: -67.2633275 | L25: -67.27629106 | M25: -67.44853061
G26: 0.2 | H26: =LN(G26) -> -1.609437912 | I26: -59.89500386 | J26: -61.49656334 | K26: -61.6316733 | L26: -61.64311658 | M26: -61.8667584
G27: 0.3 | H27: -1.203972804 | I27: -56.66134528 | J27: -58.0403146 | K27: -58.15895303 | L27: -58.16919411 | M27: -58.36844291
A28: t = t_SAC = | B28: a_SLZ*LN(G)^2+b_SLZ*LN(G)+c_SLZ | G28: 0.4 | H28: -0.9162907319 | I28: -54.29692972 | J28: -55.50410575 | K28: -55.6094489 | L28: -55.61866807 | M28: -55.7819615
A29: t = t_SAC = | B29: =a_SLZ*LN(G)^2+b_SLZ*LN(G)+c_SLZ -> -43.85853486 | C29: °C | G29: 0.5 | H29: -0.6931471806 | I29: -52.42124141 | J29: -53.48663163 | K29: -53.58064603 | L29: -53.5889631 | M29: -53.71605938
G30: 0.6 | H30: -0.5108256238 | I30: -50.86080377 | J30: -51.8044911 | K30: -51.88853805 | L30: -51.89603997 | M30: -51.98939542
A31: Analytical Solution: LambertW Function | G31: 0.7 | H31: -0.3566749439 | I31: -49.52141034 | J31: -50.3578977 | K31: -50.43298641 | L31: -50.43973993 | M31: -50.50236977
A32: (exact within numerical precision of the LamberW function) | G32: 0.8 | H32: -0.2231435513 | I32: -48.34599877 | J32: -49.08631309 | K32: -49.15322751 | L32: -49.15928596 | M32: -49.19413991
G33: 0.9 | H33: -0.1053605157 | I33: -47.29730142 | J33: -47.95014536 | K33: -48.0095155 | L33: -48.01492271 | M33: -48.02470378
G34: 1 | H34: 0 | I34: -46.34959438 | J34: -46.92203334 | K34: -46.97437872 | L34: -46.97917155 | M34: -46.9663
G35: 2 | H35: 0.6931471806 | I35: -39.87860298 | J35: -39.86707965 | K35: -39.86598612 | L35: -39.86588235 | M35: -39.71351593
G36: 3 | H36: 1.098612289 | I36: -35.89214492 | J36: -35.4899383 | K36: -35.45090408 | L36: -35.44711905 | M36: -35.23772114
G37: 4 | H37: 1.386294361 | I37: -32.967529 | J37: -32.26337354 | K37: -32.19391455 | L37: -32.18707311 | M37: -31.95770715
A38: x = | B38: -0.5*WURZEL(b_w*c_w*G/(a_w*EXP(b_w))) | G38: 5 | H38: 1.609437912 | I38: -30.64154269 | J38: -29.68784239 | K38: -29.59255375 | L38: -29.58305176 | M38: -29.35385936
A39: x = | B39: =-0.5*SQRT(b_w*c_w*G/(a_w*EXP(b_w))) -> -0.0002298455039 | G39: 6 | H39: 1.791759469 | I39: -28.70250364 | J39: -27.5343331 | K39: -27.41636994 | L39: -27.40448629 | M39: -27.18766179 | U39: a_SLZ | V39: 0.52349
A40: W(x) = | B40: LambertW(x;-1) | F40: W-1 | G40: 7 | H40: 1.945910149 | I40: -27.03524413 | J40: -25.67793818 | K40: -25.53962617 | L40: -25.52557058 | M40: -25.32901576 | U40: b_SLZ | V40: 10.1007
A41: W(x) = | B41: =LambertW(x,-1) -> -10.75331751 | E41: * | F41: W-1 | G41: 8 | H41: 2.079441542 | I41: -25.56989804 | J41: -24.04272517 | K41: -23.88586311 | L41: -23.86980047 | M41: -23.69887369 | U41: c_SLZ | V41: -46.9663
A42: t = t_SAC = | B42: -c_w-b_w*c_w/(2*B39) | G42: 9 | H42: 2.197224577 | I42: -24.26077551 | J42: -22.57894791 | K42: -22.40497645 | L42: -22.38704069 | M42: -22.24549087
A43: t = t_SAC = | B43: =-c_w-b_w*c_w/(2*W_x) -> -43.93614831 | C43: °C | E43: * #NAME?, | G43: 10 | H43: 2.302585093 | I43: -23.07630272 | J43: -21.25217514 | K43: -21.06227908 | L43: -21.04258165 | M43: -20.93308811
E44: if LamberW not defined | G44: 11 | H44: 2.397895273 | I44: -21.99371775 | J44: -20.03754969 | K44: -19.83272389 | L44: -19.81135938 | M44: -19.73586316
A45: Compare with online calculator (e.g.): | G45: 12 | H45: 2.48490665 | I45: -20.99605168 | J45: -18.91651681 | K45: -18.69761079 | L45: -18.67466075 | M45: -18.63457774
A46: https://www.had2know.org/academics/lambert-w-function-calculator.html | G46: 13 | H46: 2.564949357 | I46: -20.07030493 | J46: -17.87484521 | K46: -17.64259448 | L46: -17.61813009 | M46: -17.61449353
A47: W(x) = | B47: -0.00023 | C47: W0 | G47: 14 | H47: 2.63905733 | I47: -19.20629117 | J47: -16.90137123 | K47: -16.65642003 | L47: -16.63050415 | M47: -16.66406283
B48: and | G48: 15 | H48: 2.708050201 | I48: -18.39587517 | J48: -15.98717001 | K48: -15.73008824 | L48: -15.70277686 | M48: -15.77406463
A49: W(x) = | B49: -10.753315 | C49: W-1 | G49: 16 | H49: 2.772588722 | I49: -17.63245316 | J49: -15.12498995 | K49: -14.85628601 | L49: -14.82762941 | M49: -14.93701552
G50: 17 | H50: 2.833213344 | I50: -16.91058866 | J50: -14.30885586 | K50: -14.0289867 | L50: -13.99903037 | M50: -14.14675652
G51: 18 | H51: 2.890371758 | I51: -16.22575084 | J51: -13.53378374 | K51: -13.24316273 | L51: -13.21194802 | M51: -13.39815623
G52: 19 | H52: 2.944438979 | I52: -15.57412257 | J52: -12.79557133 | K52: -12.49457455 | L52: -12.46213931 | M52: -12.68689301
G53: 20 | H53: 2.995732274 | I53: -14.95245696 | J53: -12.09064141 | K53: -11.77961279 | L53: -11.74599181 | M53: -12.00929216
K55: Press <ALT> F11 to see the LamberW-Function (only included in files of type *.xlsm)
K57: Function LambertW(x As Double, Optional branch As Integer = 0) As Double
K58: Dim w As Double, wPrev As Double, tol As Double, i As Integer
K59: tol = 0.000000000001
K60: ' Initial guess
K61: If branch = -1 Then
K62: w = Log(-x)
K63: Else
K64: w = x
K65: End If
K66: For i = 1 To 100
A67: LambertW function: W-1 und W0. Stephan Kulla, CC BY | K67: wPrev = w
A68: https://commons.wikimedia.org/wiki/File:Diagram_of_the_real_branches_of_the_Lambert_W_function.png | K68: w = w - (w * Exp(w) - x) / ((w + 1) * Exp(w) - (w + 2) * (w * Exp(w) - x) / (2 * w + 2))
K69: If Abs(w - wPrev) < tol Then Exit For
A70: Iterative Solution | K70: Next i
A71: with t_1, t_2, t_3, t_4 | K71: LambertW = w
K72: End Function
A76: t_n+1 = | B76: b_w*c_w/(b_w-LN(G*(c_w+t_n)^2/(a_w*b_w*c_w)))-c_w
A78: t_1 = | B78: =b_w*c_w/(b_w-LN(G*(c_w+t_init)^2/(a_w*b_w*c_w)))-c_w -> -43.5730169 | C78: °C | D78: mit t_0 = t_ini = | F78: =t_init -> -40 | G78: °C
A79: t_2 = | B79: =b_w*c_w/(b_w-LN(G*(c_w+B78)^2/(a_w*b_w*c_w)))-c_w -> -43.90240409 | C79: °C
A80: t_3 = | B80: =b_w*c_w/(b_w-LN(G*(c_w+B79)^2/(a_w*b_w*c_w)))-c_w -> -43.9330105 | C80: °C
A81: t_4 = | B81: =b_w*c_w/(b_w-LN(G*(c_w+B80)^2/(a_w*b_w*c_w)))-c_w -> -43.93585651 | C81: °C
A82: t_5 = | B82: =b_w*c_w/(b_w-LN(G*(c_w+B81)^2/(a_w*b_w*c_w)))-c_w -> -43.93612117 | C82: °C
A84: Numerical Solution (with Excel Solver)
A87: See Tab "SAC"

Sheet SAD
A1: Constructing the Schmidt-Appleman-Diagram (SAD)
A3: 1.) Enter altitude, H in tab "SAC" and operate Solver (e.g. for a calculation of a new altitude)
A4: 2.) Copy new colum "C" into the column to the right to safe for later
A6: G | B6: Pa/°C | C6: =G -> 1.353809453 | D6: 3.361019853 | E6: =G -> 1.353809453 | F6: 2.17191728 | G6: 1.720975891 | H6: 1.633783341 | I6: 1.353809453 | J6: 1.064606701 | K6: 0.8371838625 | L6: 0.6583434231 | M6: 0.5177071396 | N6: 0.4071137844 | O6: 0.3201455432
A7: G0 | B7: Pa | C7: =G0 -> 72.01948871 | D7: 149.1064888 | E7: 126.2529524 | F7: 105.7963516 | G7: 87.67939672 | H7: 84.04143794 | I7: 72.45899429 | J7: 58.97524847 | K7: 48.17331252 | L7: 39.26165616 | M7: 31.93371614 | N7: 25.92567213 | O7: 21.01265731
A8: H | B8: ft | C8: =H -> 40000 | D8: 20000 | E8: 25000 | F8: 30000 | G8: 35000 | H8: 36089 | I8: 40000 | J8: 45000 | K8: 50000 | L8: 55000 | M8: 60000 | N8: 65000 | O8: 70000
A9: H | B9: m | C9: =C8*0.3048 -> 12192 | D9: 6096 | E9: =E8*0.3048 -> 7620 | F9: 9144 | G9: 10668 | H9: 10999.9272 | I9: 12192 | J9: 13716 | K9: 15240 | L9: 16764 | M9: 18288 | N9: 19812 | O9: 21336
A10: p | B10: Pa | C10: =p -> 18753.65894 | D10: 46558.56098 | E10: =p -> 18753.65894 | F10: 30086.50576 | G10: 23839.83567 | H10: 22632 | I10: 18753.65894 | J10: 14747.47492 | K10: 11597.09779 | L10: 9119.708826 | M10: 7171.543308 | N10: 5639.547753 | O10: 4434.819325
A11: t_SAC,100 | B11: °C | C11: =t -> -43.93614253 | D11: -34.17165785 | E11: -36.55699594 | F11: -38.98321546 | G11: -41.45368661 | H11: -41.99706015 | I11: -43.93614974 | J11: -46.35868655 | K11: -48.72013543 | L11: -51.02284194 | M11: -53.26904402 | N11: -55.46088519 | O11: -57.60030236
A12: t_SAC,0 | B12: °C | C12: =-G0/G -> -53.19765535 | D12: -44.36346564 | E12: -46.51743452 | F12: -48.71104098 | G12: -50.94748695 | H12: -51.43976918 | I12: -53.19765535 | J12: -55.39627774 | K12: -57.54209402 | L12: -59.63704471 | M12: -61.68297421 | N12: -63.68163676 | O12: -65.63470197
A13: Dt,tot | B13: °C | C13: =C11-C12 -> 9.261512818 | D13: 10.1918078 | E13: 9.960438578 | F13: 9.727825515 | G13: 9.493800333 | H13: 9.44270903 | I13: 9.261505613 | J13: 9.03759119 | K13: 8.821958586 | L13: 8.61420277 | M13: 8.413930196 | N13: 8.220751567 | O13: 8.034399617
A15: t | B15: E_w | C15: phi | D15: phi | E15: phi | F15: phi | G15: phi | H15: phi | I15: phi | J15: phi | K15: phi | L15: phi | M15: phi | O15: Diagram for typical kerosine aircraft
A16: -60 | B16: =a_w*EXP(b_w*A16/(c_w+A16)) -> 1.900583233 | C16: =IF(OR(G*A16+G0<0, A16>t),"n.a.",(G*A16+G0)/B16) -> n.a. | D16: n.a. | E16: n.a. | F16: n.a. | G16: n.a. | H16: n.a. | I16: n.a. | J16: n.a. | K16: n.a. | L16: n.a. | M16: 0.4584317859
A17: -59 | B17: 2.158072029 | C17: n.a. | D17: n.a. | E17: n.a. | F17: n.a. | G17: n.a. | H17: n.a. | I17: n.a. | J17: n.a. | K17: n.a. | L17: 0.1943374419 | M17: 0.6436276858 | O17: EI_H2O | P17: 1.25
A18: -58 | B18: 2.447083757 | C18: n.a. | D18: n.a. | E18: n.a. | F18: n.a. | G18: n.a. | H18: n.a. | I18: n.a. | J18: n.a. | K18: n.a. | L18: 0.4404171363 | M18: 0.7791731851 | O18: c_p | P18: 1004 | Q18: J/(kgK)
A19: -57 | B19: 2.771055336 | C19: n.a. | D19: n.a. | E19: n.a. | F19: n.a. | G19: n.a. | H19: n.a. | I19: n.a. | J19: n.a. | K19: 0.1637760015 | L19: 0.6265053683 | M19: 0.874904645 | O19: eps | P19: 0.622
A20: -56 | B20: 3.133750611 | C20: n.a. | D20: n.a. | E20: n.a. | F20: n.a. | G20: n.a. | H20: n.a. | I20: n.a. | J20: n.a. | K20: 0.4119715912 | L20: 0.7640762665 | M20: 0.9388482652 | O20: Q | P20: 43000000 | Q20: J/kg
A21: -55 | B21: 3.539286647 | C21: n.a. | D21: n.a. | E21: n.a. | F21: n.a. | G21: n.a. | H21: n.a. | I21: n.a. | J21: 0.1191991425 | K21: 0.6013076363 | L21: 0.8625376225 | M21: 0.9775482488 | O21: eta | P21: 0.35
A22: -54 | B22: 3.992161715 | C22: n.a. | D22: n.a. | E22: n.a. | F22: n.a. | G22: n.a. | H22: n.a. | I22: n.a. | J22: 0.3723513075 | K22: 0.7428015602 | L22: 0.9295994447 | M22: 0.9963350405
A23: -53 | B23: 4.497285042 | C23: 0.05949982738 | D23: n.a. | E23: n.a. | F23: n.a. | G23: n.a. | H23: n.a. | I23: 0.05949982738 | J23: 0.5672518666 | K23: 0.8455251952 | L23: 0.9715761165 | M23: n.a. | O23: EI_H2O and Q for Kerosine
A24: -52 | B24: 5.060008421 | C24: 0.3204336835 | D24: n.a. | E24: n.a. | F24: n.a. | G24: n.a. | H24: n.a. | I24: 0.3204336835 | J24: 0.7145640353 | K24: 0.9169454455 | L24: 0.9936343463 | M24: n.a.
A25: -51 | B25: 5.686159738 | C25: 0.5232365476 | D25: n.a. | E25: n.a. | F25: n.a. | G25: n.a. | H25: 0.1263572593 | I25: 0.5232365476 | J25: 0.8231050396 | K25: 0.9632046566 | L25: n.a. | M25: n.a.
A26: -50 | B26: 6.382078525 | C26: 0.678308176 | D26: n.a. | E26: n.a. | F26: n.a. | G26: 0.2554970433 | H26: 0.3685744216 | I26: 0.678308176 | J26: 0.9001633895 | K26: 0.9893515687 | L26: n.a. | M26: n.a.
A27: -49 | B27: 7.154653595 | C27: 0.7942838073 | D27: n.a. | E27: n.a. | F27: n.a. | G27: 0.4684472895 | H27: 0.557127496 | I27: 0.7942838073 | J27: 0.9517609829 | K27: 0.9995317269 | L27: n.a. | M27: n.a.
A28: -48 | B28: 8.011362866 | C28: 0.8783318229 | D28: n.a. | E28: n.a. | F28: 0.1927664758 | G28: 0.6331699186 | H28: 0.7014833401 | I28: 0.8783318229 | J28: 0.9828698275 | K28: n.a. | L28: n.a. | M28: n.a.
A29: -47 | B29: 8.960315452 | C29: 0.9364005596 | D29: n.a. | E29: n.a. | F29: 0.4147442673 | G29: 0.7581797651 | H29: 0.8095274059 | I29: 0.9364005596 | J29: 0.9975913892 | K29: n.a. | L29: n.a. | M29: n.a.
A30: -46 | B30: 10.0102961 | C30: 0.9734231398 | D30: n.a. | E30: 0.1402924374 | F30: 0.5882100479 | G30: 0.8505748155 | H30: 0.8878263119 | I30: 0.9734231398 | J30: n.a. | K30: n.a. | L30: n.a. | M30: n.a.
A31: -45 | B31: 11.17081206 | C31: 0.9934876041 | D31: n.a. | E31: 0.3686812077 | F31: 0.7215298211 | G31: 0.9162701504 | H31: 0.941846264 | I31: 0.9934876041 | J31: n.a. | K31: n.a. | L31: n.a. | M31: n.a.
A32: -44 | B32: 12.45214253 | C32: 0.9999783355 | D32: 0.09810482323 | E32: 0.5487062252 | F32: 0.8217052832 | G32: 0.9601927946 | H32: 0.9761349032 | I32: 0.9999783355 | J32: n.a. | K32: n.a. | L32: n.a. | M32: n.a.
A33: -43 | B33: 13.86539066 | C33: n.a. | D33: 0.3305089057 | E33: 0.6885249756 | F33: 0.8945949587 | G33: 0.9864441442 | H33: 0.9944728296 | I33: n.a. | J33: n.a. | K33: n.a. | L33: n.a. | M33: n.a.
A34: -42 | B34: 15.4225383 | C34: n.a. | D34: 0.5150679344 | E34: 0.7949902389 | F34: 0.9450990219 | G34: 0.9984354724 | H34: 0.9999999561 | I34: n.a. | J34: n.a. | K34: n.a. | L34: n.a. | M34: n.a.
A35: -41 | B35: 17.13650356 | C35: n.a. | D35: 0.6596838592 | E35: 0.8738577857 | F35: 0.9773139013 | G35: n.a. | H35: n.a. | I35: n.a. | J35: n.a. | K35: n.a. | L35: n.a. | M35: n.a.
A36: -40 | B36: 19.02120121 | C36: n.a. | D36: 0.7710183226 | E36: 0.9299605478 | F36: 0.994661705 | G36: n.a. | H36: n.a. | I36: n.a. | J36: n.a. | K36: n.a. | L36: n.a. | M36: n.a.
A37: -39 | B37: 21.09160616 | C37: n.a. | D37: 0.8546866638 | E37: 0.9673547943 | F37: 0.9999986509 | G37: n.a. | H37: n.a. | I37: n.a. | J37: n.a. | K37: n.a. | L37: n.a. | M37: n.a.
A38: -38 | B38: 23.36381992 | C38: n.a. | D38: 0.9154211269 | E38: 0.9894429107 | F38: n.a. | G38: n.a. | H38: n.a. | I38: n.a. | J38: n.a. | K38: n.a. | L38: n.a. | M38: n.a.
A39: -37 | B39: 25.85514027 | C39: n.a. | D39: 0.9572082748 | E39: 0.9990765999 | F39: n.a. | G39: n.a. | H39: n.a. | I39: n.a. | J39: n.a. | K39: n.a. | L39: n.a. | M39: n.a.
A40: -36 | B40: 28.58413421 | C40: n.a. | D40: 0.9834047746 | E40: n.a. | F40: n.a. | G40: n.a. | H40: n.a. | I40: n.a. | J40: n.a. | K40: n.a. | L40: n.a. | M40: n.a.
A41: -35 | B41: 31.57071426 | C41: n.a. | D41: 0.9968350307 | E41: n.a. | F41: n.a. | G41: n.a. | H41: n.a. | I41: n.a. | J41: n.a. | K41: n.a. | L41: n.a. | M41: n.a.
A42: -34 | B42: 34.83621814 | C42: n.a. | D42: n.a. | E42: n.a. | F42: n.a. | G42: n.a. | H42: n.a. | I42: n.a. | J42: n.a. | K42: n.a. | L42: n.a. | M42: n.a.
A43: -33 | B43: 38.4034921 | C43: n.a. | D43: n.a. | E43: n.a. | F43: n.a. | G43: n.a. | H43: n.a. | I43: n.a. | J43: n.a. | K43: n.a. | L43: n.a. | M43: n.a.
A44: -32 | B44: 42.29697778 | C44: n.a. | D44: n.a. | E44: n.a. | F44: n.a. | G44: n.a. | H44: n.a. | I44: n.a. | J44: n.a. | K44: n.a. | L44: n.a. | M44: n.a.
A45: -31 | B45: 46.54280284 | C45: n.a. | D45: n.a. | E45: n.a. | F45: n.a. | G45: n.a. | H45: n.a. | I45: n.a. | J45: n.a. | K45: n.a. | L45: n.a. | M45: n.a.
A46: -30 | B46: 51.16887541 | C46: n.a. | D46: n.a. | E46: n.a. | F46: n.a. | G46: n.a. | H46: n.a. | I46: n.a. | J46: n.a. | K46: n.a. | L46: n.a. | M46: n.a.
A47: -29 | B47: 56.20498237 | C47: n.a. | D47: n.a. | E47: n.a. | F47: n.a. | G47: n.a. | H47: n.a. | I47: n.a. | J47: n.a. | K47: n.a. | L47: n.a. | M47: n.a.
A48: -28 | B48: 61.6828917 | C48: n.a. | D48: n.a. | E48: n.a. | F48: n.a. | G48: n.a. | H48: n.a. | I48: n.a. | J48: n.a. | K48: n.a. | L48: n.a. | M48: n.a.
A49: -27 | B49: 67.63645884 | C49: n.a. | D49: n.a. | E49: n.a. | F49: n.a. | G49: n.a. | H49: n.a. | I49: n.a. | J49: n.a. | K49: n.a. | L49: n.a. | M49: n.a.
A50: -26 | B50: 74.10173722 | C50: n.a. | D50: n.a. | E50: n.a. | F50: n.a. | G50: n.a. | H50: n.a. | I50: n.a. | J50: n.a. | K50: n.a. | L50: n.a. | M50: n.a.
A51: -25 | B51: 81.11709306 | C51: n.a. | D51: n.a. | E51: n.a. | F51: n.a. | G51: n.a. | H51: n.a. | I51: n.a. | J51: n.a. | K51: n.a. | L51: n.a. | M51: n.a.
A54: Schmidt-Appleman-Diagram from Approximate Equation
A56: phi = 1 - (1/Dt,tot(H)^b_t)*((H - b_H)/a_H - t)^b_t with Dt,tot(H) = a_tot*H + b_tot
A58: H, ft | D58: 20000 | E58: 25000 | F58: 30000 | G58: 35000 | H58: 36089 | I58: 40000 | J58: 45000 | K58: 50000 | L58: 55000 | M58: 60000 | O58: Diagram for typical kerosine aircraft
A59: t, °C | B59: calculated: | C59: Dt,tot(H) | D59: =a_tot*D58+b_tot -> 10.15428 | E59: 9.93735 | F59: 9.72042 | G59: 9.50349 | H59: 9.456242646 | I59: 9.28656 | J59: 9.06963 | K59: 8.8527 | L59: 8.63577 | M59: 8.41884
A60: -60 | D60: =IF(D16="n.a.","n.a.",1-(1/D$59^b_t)*((D$58-b_H)/a_H-$A60)^b_t) -> n.a. | E60: n.a. | F60: n.a. | G60: n.a. | H60: n.a. | I60: n.a. | J60: n.a. | K60: n.a. | L60: n.a. | M60: 0.4313331727 | O60: EI_H2O | P60: 1.25
A61: -59 | D61: =IF(D17="n.a.","n.a.",1-(1/D$59^b_t)*((D$58-b_H)/a_H-$A61)^b_t) -> n.a. | E61: n.a. | F61: n.a. | G61: n.a. | H61: n.a. | I61: n.a. | J61: n.a. | K61: n.a. | L61: 0.1437245801 | M61: 0.6245181822 | O61: c_p | P61: 1004 | Q61: J/(kgK)
A62: -58 | D62: =IF(D18="n.a.","n.a.",1-(1/D$59^b_t)*((D$58-b_H)/a_H-$A62)^b_t) -> n.a. | E62: n.a. | F62: n.a. | G62: n.a. | H62: n.a. | I62: n.a. | J62: n.a. | K62: n.a. | L62: 0.3910917947 | M62: 0.7709345983 | O62: eps | P62: 0.622
A63: -57 | D63: =IF(D19="n.a.","n.a.",1-(1/D$59^b_t)*((D$58-b_H)/a_H-$A63)^b_t) -> n.a. | E63: n.a. | F63: n.a. | G63: n.a. | H63: n.a. | I63: n.a. | J63: n.a. | K63: 0.1016116877 | L63: 0.5887585884 | M63: 0.8756310733 | O63: Q | P63: 43000000 | Q63: J/kg
A64: -56 | D64: =IF(D20="n.a.","n.a.",1-(1/D$59^b_t)*((D$58-b_H)/a_H-$A64)^b_t) -> n.a. | E64: n.a. | F64: n.a. | G64: n.a. | H64: n.a. | I64: n.a. | J64: n.a. | K64: 0.3512403101 | L64: 0.7410316128 | M64: 0.9441073049 | O64: eta | P64: 0.35
A65: -55 | D65: =IF(D21="n.a.","n.a.",1-(1/D$59^b_t)*((D$58-b_H)/a_H-$A65)^b_t) -> n.a. | E65: n.a. | F65: n.a. | G65: n.a. | H65: n.a. | I65: n.a. | J65: 0.06035102035 | K65: 0.5528762442 | L65: 0.8525116953 | M65: 0.9825001585
A66: -54 | D66: =IF(D22="n.a.","n.a.",1-(1/D$59^b_t)*((D$58-b_H)/a_H-$A66)^b_t) -> n.a. | E66: n.a. | F66: n.a. | G66: n.a. | H66: n.a. | I66: n.a. | J66: 0.3118404161 | K66: 0.7104720021 | L66: 0.9281796418 | M66: 0.9979677745 | O66: EI_H2O and Q for Kerosine
A67: -53 | D67: =IF(D23="n.a.","n.a.",1-(1/D$59^b_t)*((D$58-b_H)/a_H-$A67)^b_t) -> n.a. | E67: n.a. | F67: n.a. | G67: n.a. | H67: n.a. | I67: 0.01995140237 | J67: 0.5169781429 | K67: 0.8282343129 | L67: 0.973537403 | M67: n.a.
A68: -52 | D68: =IF(D24="n.a.","n.a.",1-(1/D$59^b_t)*((D$58-b_H)/a_H-$A68)^b_t) -> n.a. | E68: n.a. | F68: n.a. | G68: n.a. | H68: n.a. | I68: 0.2729419187 | J68: 0.6794013067 | K68: 0.9106929866 | L68: 0.9948769178 | M68: n.a.
A69: -51 | D69: =IF(D25="n.a.","n.a.",1-(1/D$59^b_t)*((D$58-b_H)/a_H-$A69)^b_t) -> n.a. | E69: n.a. | F69: n.a. | G69: n.a. | H69: 0.1051227647 | I69: 0.4811556299 | J69: 0.80296805 | K69: 0.9628101344 | L69: n.a. | M69: n.a.
A70: -50 | D70: =IF(D26="n.a.","n.a.",1-(1/D$59^b_t)*((D$58-b_H)/a_H-$A70)^b_t) -> n.a. | E70: n.a. | F70: n.a. | G70: 0.2345845256 | H70: 0.3396948492 | I70: 0.6479476714 | J70: 0.891813456 | K70: 0.9901755621 | L70: n.a. | M70: n.a.
A71: -49 | D71: =IF(D27="n.a.","n.a.",1-(1/D$59^b_t)*((D$58-b_H)/a_H-$A71)^b_t) -> n.a. | E71: n.a. | F71: n.a. | G71: 0.4454864086 | H71: 0.5320315144 | I71: 0.7768664366 | J71: 0.9504354756 | K71: 0.9994443431 | L71: n.a. | M71: n.a.
A72: -48 | D72: =IF(D28="n.a.","n.a.",1-(1/D$59^b_t)*((D$58-b_H)/a_H-$A72)^b_t) -> n.a. | E72: n.a. | F72: 0.1967993786 | G72: 0.6162235818 | H72: 0.6853597862 | I72: 0.8716994231 | J72: 0.9838410787 | K72: n.a. | L72: n.a. | M72: n.a.
A73: -47 | D73: =IF(D29="n.a.","n.a.",1-(1/D$59^b_t)*((D$58-b_H)/a_H-$A73)^b_t) -> n.a. | E73: n.a. | F73: 0.4100363093 | G73: 0.75006805 | H73: 0.8030968192 | I73: 0.9365418076 | J73: 0.9978419807 | K73: n.a. | L73: n.a. | M73: n.a.
A74: -46 | D74: =IF(D30="n.a.","n.a.",1-(1/D$59^b_t)*((D$58-b_H)/a_H-$A74)^b_t) -> n.a. | E74: 0.1596103596 | F74: 0.5843275067 | G74: 0.8504995875 | H74: 0.8888962314 | I74: 0.9759083022 | J74: n.a. | K74: n.a. | L74: n.a. | M74: n.a.
A75: -45 | D75: =IF(D31="n.a.","n.a.",1-(1/D$59^b_t)*((D$58-b_H)/a_H-$A75)^b_t) -> n.a. | E75: 0.3748608428 | F75: 0.72269741 | G75: 0.9212611506 | H75: 0.9467181905 | I75: 0.9949429859 | J75: n.a. | K75: n.a. | L75: n.a. | M75: n.a.
A76: -44 | D76: =IF(D32="n.a.","n.a.",1-(1/D$59^b_t)*((D$58-b_H)/a_H-$A76)^b_t) -> 0.123035206 | E76: 0.5523454192 | F76: 0.8283520517 | G76: 0.9664461184 | H76: 0.9809456992 | I76: 0.9999440085 | J76: n.a. | K76: n.a. | L76: n.a. | M76: n.a.
A77: -43 | D77: =IF(D33="n.a.","n.a.",1-(1/D$59^b_t)*((D$58-b_H)/a_H-$A77)^b_t) -> 0.3400065607 | E77: 0.6948659989 | F77: 0.9047243242 | G77: 0.9906524988 | H77: 0.9966093872 | I77: n.a. | J77: n.a. | K77: n.a. | L77: n.a. | M77: n.a.
A78: -42 | D78: =IF(D34="n.a.","n.a.",1-(1/D$59^b_t)*((D$58-b_H)/a_H-$A78)^b_t) -> 0.5203521888 | E78: 0.8053840459 | F78: 0.9555431166 | G78: 0.9993195969 | H78: 0.9999980014 | I78: n.a. | J78: n.a. | K78: n.a. | L78: n.a. | M78: n.a.
A79: -41 | D79: =IF(D35="n.a.","n.a.",1-(1/D$59^b_t)*((D$58-b_H)/a_H-$A79)^b_t) -> 0.6666733243 | E79: 0.8870579169 | F79: 0.9849497487 | G79: n.a. | H79: n.a. | I79: n.a. | J79: n.a. | K79: n.a. | L79: n.a. | M79: n.a.
A80: -40 | D80: =IF(D36="n.a.","n.a.",1-(1/D$59^b_t)*((D$58-b_H)/a_H-$A80)^b_t) -> 0.7817120673 | E80: 0.9432984043 | F80: 0.997729251 | G80: n.a. | H80: n.a. | I80: n.a. | J80: n.a. | K80: n.a. | L80: n.a. | M80: n.a.
A81: -39 | D81: =IF(D37="n.a.","n.a.",1-(1/D$59^b_t)*((D$58-b_H)/a_H-$A81)^b_t) -> 0.8683824515 | E81: 0.977858585 | F81: n.a. | G81: =IF(G37="n.a.","n.a.",1-(1/G$59^b_t)*((G$58-b_H)/a_H-$A81)^b_t) -> n.a. | H81: n.a. | I81: n.a. | J81: n.a. | K81: n.a. | L81: n.a. | M81: n.a.
A82: -38 | D82: 0.9298156004 | E82: 0.9949999725 | F82: =IF(F38="n.a.","n.a.",1-(1/F$59^b_t)*((F$58-b_H)/a_H-$A82)^b_t) -> n.a. | G82: n.a. | H82: n.a. | I82: n.a. | J82: n.a. | K82: n.a. | L82: n.a. | M82: n.a.
A83: -37 | D83: 0.9694303204 | E83: 0.9998935852 | F83: n.a. | G83: n.a. | H83: n.a. | I83: n.a. | J83: n.a. | K83: n.a. | L83: n.a. | M83: n.a.
A84: -36 | D84: 0.9910564492 | E84: n.a. | F84: n.a. | G84: n.a. | H84: n.a. | I84: n.a. | J84: n.a. | K84: n.a. | L84: n.a. | M84: n.a.
A85: -35 | D85: 0.9991978986 | E85: n.a. | F85: n.a. | G85: n.a. | H85: n.a. | I85: n.a. | J85: n.a. | K85: n.a. | L85: n.a. | M85: n.a.
A86: -34 | D86: n.a. | E86: n.a. | F86: n.a. | G86: n.a. | H86: n.a. | I86: n.a. | J86: n.a. | K86: n.a. | L86: n.a. | M86: n.a.
A87: -33 | D87: n.a. | E87: n.a. | F87: n.a. | G87: n.a. | H87: n.a. | I87: n.a. | J87: n.a. | K87: n.a. | L87: n.a. | M87: n.a.
A88: -32 | D88: n.a. | E88: n.a. | F88: n.a. | G88: n.a. | H88: n.a. | I88: n.a. | J88: n.a. | K88: n.a. | L88: n.a. | M88: n.a.
A89: -31 | D89: n.a. | E89: n.a. | F89: n.a. | G89: n.a. | H89: n.a. | I89: n.a. | J89: n.a. | K89: n.a. | L89: n.a. | M89: n.a.
A90: -30 | D90: n.a. | E90: n.a. | F90: n.a. | G90: n.a. | H90: n.a. | I90: n.a. | J90: n.a. | K90: n.a. | L90: n.a. | M90: n.a.
A91: -29 | D91: n.a. | E91: n.a. | F91: n.a. | G91: n.a. | H91: n.a. | I91: n.a. | J91: n.a. | K91: n.a. | L91: n.a. | M91: n.a.
A92: -28 | D92: n.a. | E92: n.a. | F92: n.a. | G92: n.a. | H92: n.a. | I92: n.a. | J92: n.a. | K92: n.a. | L92: n.a. | M92: n.a.
A93: -27 | D93: n.a. | E93: n.a. | F93: n.a. | G93: n.a. | H93: n.a. | I93: n.a. | J93: n.a. | K93: n.a. | L93: n.a. | M93: n.a.
A94: -26 | D94: n.a. | E94: n.a. | F94: n.a. | G94: n.a. | H94: n.a. | I94: n.a. | J94: n.a. | K94: n.a. | L94: n.a. | M94: n.a.
A95: -25 | D95: n.a. | E95: n.a. | F95: n.a. | G95: n.a. | H95: n.a. | I95: n.a. | J95: n.a. | K95: n.a. | L95: n.a. | M95: n.a.
A98: Error of the Schmidt-Appleman-Diagram from Approximate Equation
A100: The Approximate Equation was calculated for a typical altitude of 40000 ft. Errors occur for lower relative humidity (towards 0%) at high and low altitudes.
A102: H, ft | D102: 20000 | E102: 25000 | F102: 30000 | G102: 35000 | H102: 36089 | I102: 40000 | J102: 45000 | K102: 50000 | L102: 55000 | M102: 60000
A103: t, °C
A104: -60 | D104: =IF(D16="n.a.","n.a.",(D60-D16)) -> n.a. | E104: n.a. | F104: n.a. | G104: n.a. | H104: n.a. | I104: =IF(I16="n.a.","n.a.",(I60-I16)) -> n.a. | J104: n.a. | K104: n.a. | L104: n.a. | M104: -0.02709861316
A105: -59 | D105: n.a. | E105: n.a. | F105: n.a. | G105: n.a. | H105: n.a. | I105: =IF(I17="n.a.","n.a.",(I61-I17)) -> n.a. | J105: n.a. | K105: n.a. | L105: -0.0506128618 | M105: -0.01910950357
A106: -58 | D106: n.a. | E106: n.a. | F106: n.a. | G106: n.a. | H106: n.a. | I106: =IF(I18="n.a.","n.a.",(I62-I18)) -> n.a. | J106: n.a. | K106: n.a. | L106: -0.04932534163 | M106: -0.008238586847
A107: -57 | D107: n.a. | E107: n.a. | F107: n.a. | G107: n.a. | H107: n.a. | I107: =IF(I19="n.a.","n.a.",(I63-I19)) -> n.a. | J107: n.a. | K107: -0.06216431381 | L107: -0.03774677988 | M107: 0.0007264283721
A108: -56 | D108: n.a. | E108: n.a. | F108: n.a. | G108: n.a. | H108: n.a. | I108: =IF(I20="n.a.","n.a.",(I64-I20)) -> n.a. | J108: n.a. | K108: -0.06073128107 | L108: -0.02304465375 | M108: 0.005259039687
A109: -55 | D109: n.a. | E109: n.a. | F109: n.a. | G109: n.a. | H109: n.a. | I109: =IF(I21="n.a.","n.a.",(I65-I21)) -> n.a. | J109: -0.05884812215 | K109: -0.04843139213 | L109: -0.0100259272 | M109: 0.004951909679
A110: -54 | D110: n.a. | E110: n.a. | F110: n.a. | G110: n.a. | H110: n.a. | I110: =IF(I22="n.a.","n.a.",(I66-I22)) -> n.a. | J110: -0.06051089133 | K110: -0.03232955813 | L110: -0.001419802847 | M110: 0.001632734057
A111: -53 | D111: n.a. | E111: n.a. | F111: n.a. | G111: n.a. | H111: n.a. | I111: =IF(I23="n.a.","n.a.",(I67-I23)) -> -0.03954842501 | J111: -0.05027372375 | K111: -0.01729088226 | L111: 0.001961286443 | M111: n.a.
A112: -52 | D112: n.a. | E112: n.a. | F112: n.a. | G112: n.a. | H112: n.a. | I112: =IF(I24="n.a.","n.a.",(I68-I24)) -> -0.04749176487 | J112: -0.03516272857 | K112: -0.006252458928 | L112: 0.001242571493 | M112: n.a.
A113: -51 | D113: n.a. | E113: n.a. | F113: n.a. | G113: n.a. | H113: -0.02123449463 | I113: =IF(I25="n.a.","n.a.",(I69-I25)) -> -0.04208091763 | J113: -0.02013698951 | K113: -0.0003945221989 | L113: n.a. | M113: n.a.
A114: -50 | D114: =IF(D26="n.a.","n.a.",(D70-D26)) -> n.a. | E114: n.a. | F114: n.a. | G114: -0.02091251762 | H114: -0.02887957241 | I114: =IF(I26="n.a.","n.a.",(I70-I26)) -> -0.03036050468 | J114: -0.008349933515 | K114: 0.0008239933947 | L114: n.a. | M114: n.a.
A115: -49 | D115: n.a. | E115: n.a. | F115: n.a. | G115: -0.02296088087 | H115: -0.02509598155 | I115: =IF(I27="n.a.","n.a.",(I71-I27)) -> -0.01741737064 | J115: -0.001325507292 | K115: -8.738376001e-05 | L115: n.a. | M115: n.a.
A116: -48 | D116: n.a. | E116: n.a. | F116: 0.004032902815 | G116: -0.01694633682 | H116: -0.01612355397 | I116: =IF(I28="n.a.","n.a.",(I72-I28)) -> -0.006632399766 | J116: 0.0009712512327 | K116: n.a. | L116: n.a. | M116: n.a.
A117: -47 | D117: n.a. | E117: n.a. | F117: -0.004707957982 | G117: -0.008111715173 | H117: -0.006430586618 | I117: =IF(I29="n.a.","n.a.",(I73-I29)) -> 0.0001412480514 | J117: 0.0002505915708 | K117: n.a. | L117: n.a. | M117: n.a.
A118: -46 | D118: n.a. | E118: 0.01931792229 | F118: -0.003882541281 | G118: -7.522800777e-05 | H118: 0.001069919522 | I118: =IF(I30="n.a.","n.a.",(I74-I30)) -> 0.002485162386 | J118: n.a. | K118: n.a. | L118: n.a. | M118: n.a.
A119: -45 | D119: n.a. | E119: 0.006179635152 | F119: 0.001167588902 | G119: 0.004991000179 | H119: 0.004871926539 | I119: =IF(I31="n.a.","n.a.",(I75-I31)) -> 0.001455381747 | J119: n.a. | K119: n.a. | L119: n.a. | M119: n.a.
A120: -44 | D120: 0.0249303828 | E120: 0.003639194039 | F120: 0.006646768442 | G120: 0.006253323866 | H120: 0.004810795985 | I120: =IF(I32="n.a.","n.a.",(I76-I32)) -> -3.432697631e-05 | J120: n.a. | K120: n.a. | L120: n.a. | M120: n.a.
A121: -43 | D121: =IF(D33="n.a.","n.a.",(D77-D33)) -> 0.009497655086 | E121: 0.006341023312 | F121: 0.01012936555 | G121: 0.004208354549 | H121: n.a. | I121: n.a. | J121: n.a. | K121: n.a. | L121: n.a. | M121: n.a.
A122: -42 | D122: 0.005284254432 | E122: 0.01039380703 | F122: 0.01044409469 | G122: 0.0008841245288 | H122: n.a. | I122: n.a. | J122: n.a. | K122: n.a. | L122: n.a. | M122: n.a.
A123: -41 | D123: 0.006989465147 | E123: 0.01320013114 | F123: 0.007635847386 | G123: n.a. | H123: =IF(H35="n.a.","n.a.",(H79-H35)) -> n.a. | I123: n.a. | J123: =IF(J35="n.a.","n.a.",(J79-J35)) -> n.a. | K123: n.a. | L123: n.a. | M123: n.a.
A124: -40 | D124: 0.01069374471 | E124: 0.01333785653 | F124: 0.003067546033 | G124: n.a. | H124: n.a. | I124: n.a. | J124: =IF(J36="n.a.","n.a.",(J80-J36)) -> n.a. | K124: n.a. | L124: n.a. | M124: n.a.
A125: -39 | D125: =IF(D37="n.a.","n.a.",(D81-D37)) -> 0.01369578764 | E125: 0.01050379062 | F125: n.a. | G125: =IF(G37="n.a.","n.a.",(G81-G37)) -> n.a. | H125: n.a. | I125: n.a. | J125: =IF(J37="n.a.","n.a.",(J81-J37)) -> n.a. | K125: n.a. | L125: n.a. | M125: n.a.
A126: -38 | D126: 0.01439447343 | E126: 0.005557061816 | F126: =IF(F38="n.a.","n.a.",(F82-F38)) -> n.a. | G126: n.a. | H126: n.a. | I126: n.a. | J126: =IF(J38="n.a.","n.a.",(J82-J38)) -> n.a. | K126: n.a. | L126: n.a. | M126: n.a.
A127: -37 | D127: 0.01222204554 | E127: 0.000816985268 | F127: n.a. | G127: n.a. | H127: n.a. | I127: n.a. | J127: =IF(J39="n.a.","n.a.",(J83-J39)) -> n.a. | K127: n.a. | L127: n.a. | M127: n.a.
A128: -36 | D128: 0.007651674547 | E128: n.a. | F128: n.a. | G128: n.a. | H128: n.a. | I128: n.a. | J128: =IF(J40="n.a.","n.a.",(J84-J40)) -> n.a. | K128: n.a. | L128: n.a. | M128: n.a.
A129: -35 | D129: 0.002362867942 | E129: n.a. | F129: n.a. | G129: n.a. | H129: n.a. | I129: n.a. | J129: =IF(J41="n.a.","n.a.",(J85-J41)) -> n.a. | K129: n.a. | L129: n.a. | M129: n.a.
A130: -34 | D130: n.a. | E130: n.a. | F130: n.a. | G130: n.a. | H130: n.a. | I130: n.a. | J130: =IF(J42="n.a.","n.a.",(J86-J42)) -> n.a. | K130: n.a. | L130: n.a. | M130: n.a.
A131: -33 | D131: n.a. | E131: n.a. | F131: n.a. | G131: n.a. | H131: n.a. | I131: n.a. | J131: =IF(J43="n.a.","n.a.",(J87-J43)) -> n.a. | K131: n.a. | L131: n.a. | M131: n.a.
A132: -32 | D132: n.a. | E132: n.a. | F132: n.a. | G132: n.a. | H132: n.a. | I132: n.a. | J132: =IF(J44="n.a.","n.a.",(J88-J44)) -> n.a. | K132: n.a. | L132: n.a. | M132: n.a.
A133: -31 | D133: n.a. | E133: n.a. | F133: n.a. | G133: n.a. | H133: n.a. | I133: n.a. | J133: =IF(J45="n.a.","n.a.",(J89-J45)) -> n.a. | K133: n.a. | L133: n.a. | M133: n.a.
A134: -30 | D134: n.a. | E134: n.a. | F134: n.a. | G134: n.a. | H134: n.a. | I134: n.a. | J134: =IF(J46="n.a.","n.a.",(J90-J46)) -> n.a. | K134: n.a. | L134: n.a. | M134: n.a.
A135: -29 | D135: n.a. | E135: n.a. | F135: n.a. | G135: n.a. | H135: n.a. | I135: n.a. | J135: =IF(J47="n.a.","n.a.",(J91-J47)) -> n.a. | K135: n.a. | L135: n.a. | M135: n.a.
A136: -28 | D136: n.a. | E136: n.a. | F136: n.a. | G136: n.a. | H136: n.a. | I136: n.a. | J136: =IF(J48="n.a.","n.a.",(J92-J48)) -> n.a. | K136: n.a. | L136: n.a. | M136: n.a.
A137: -27 | D137: n.a. | E137: n.a. | F137: n.a. | G137: n.a. | H137: n.a. | I137: n.a. | J137: =IF(J49="n.a.","n.a.",(J93-J49)) -> n.a. | K137: n.a. | L137: n.a. | M137: n.a.
A138: -26 | D138: n.a. | E138: n.a. | F138: n.a. | G138: n.a. | H138: n.a. | I138: n.a. | J138: =IF(J50="n.a.","n.a.",(J94-J50)) -> n.a. | K138: n.a. | L138: n.a. | M138: n.a.
A139: -25 | D139: n.a. | E139: n.a. | F139: n.a. | G139: n.a. | H139: n.a. | I139: n.a. | J139: =IF(J51="n.a.","n.a.",(J95-J51)) -> n.a. | K139: n.a. | L139: n.a. | M139: n.a.
A142: Calculation of the Approximate Equation for the Schmidt-Appleman-Diagram
A144: Calculate the correction that has to be applied to get from phi = 100% to the actual phi at temperatures lower than t_SAC
E146: Dt_tot: | F146: 8 | G146: 10 | H146: 12
A147: valid for 40000 ft or "40k" | C147: a_t = | D147: 0.003084458258 | E147: a_t: | F147: =1/(F$146^b_t) -> 0.004493112266 | G147: =1/(G$146^b_t) -> 0.002515611714 | H147: =1/(H$146^b_t) -> 0.001566113851
A148: Dt_tot,40k = 9,246 °C | C148: b_t = | D148: 2.599356392
A149: Delta t, °C | B149: phi | C149: Dphi | D149: Dphi_calc_9,246 | E149: error^2 | F149: Dphi_calc_8 | G149: Dphi_calc_10 | H149: Dphi_calc_12
A150: 12 | D150: =a_t*A150^b_t -> 1.969498103 | E150: =(D150-C150)^2 -> 3.878922779 | F150: =(1/F$146^b_t)*$A150^b_t -> 2.868956344 | G150: =(1/G$146^b_t)*$A150^b_t -> 1.606276398 | H150: =(1/H$146^b_t)*$A150^b_t -> 1
A151: 11 | D151: 1.570831601 | E151: 2.46751192 | F151: 2.288221187 | G151: 1.281133362 | H151: 0.7975796466
A152: 10 | D152: 1.226126528 | E152: 1.503386264 | F152: 1.786091327 | G152: 1 | H152: 0.622557862
A153: 9 | B153: 0.05949982738 | C153: =1-B153 -> 0.9405001726 | D153: 0.9323849684 | E153: 6.585653913e-05 | F153: 1.358199719 | G153: 0.7604312824 | H153: 0.4734124734
A154: 8 | B154: 0.3204336835 | C154: 0.6795663165 | D154: 0.686485909 | E154: 4.788076052e-05 | F154: 1 | G154: 0.5598817847 | H154: 0.3485588068
A155: 7 | B155: 0.5232365476 | C155: 0.4767634524 | D155: 0.4851654759 | E155: 7.059399844e-05 | F155: 0.7067377051 | G155: 0.3956895676 | H155: 0.2463396512
A156: 6 | B156: 0.678308176 | C156: 0.321691824 | D156: 0.3249909921 | E156: 1.088451037e-05 | F156: 0.4734124734 | G156: 0.2650550205 | H156: 0.1650120869
A157: 5 | B157: 0.7942838073 | C157: 0.2057161927 | D157: 0.2023256972 | E157: 1.149545997e-05 | F157: 0.2947266573 | G157: 0.1650120869 | H157: 0.102729572
A158: 4 | B158: 0.8783318229 | C158: 0.1216681771 | D158: 0.1132784724 | E158: 7.038714506e-05 | F158: 0.1650120869 | G158: 0.09238726168 | H158: 0.05751641611
A159: 3 | B159: 0.9364005596 | C159: 0.0635994404 | D159: 0.05362744182 | E159: 9.94407558e-05 | F159: 0.07811878018 | G159: 0.04373728206 | H159: 0.02722898881
A160: 2 | B160: 0.9734231398 | C160: 0.02657686017 | D160: 0.01869231713 | E160: 6.216601891e-05 | F160: 0.02722898881 | G160: 0.01524501485 | H160: 0.009490903851
A161: 1 | B161: 0.9934876041 | C161: 0.006512395873 | D161: 0.003084458258 | E161: 1.175075629e-05 | F161: 0.004493112266 | G161: 0.002515611714 | H161: 0.001566113851
A162: 0 | B162: 0.9999783355 | C162: 2.166451952e-05 | D162: 0 | E162: 4.693514061e-10 | F162: 0 | G162: 0 | H162: 0
B163: copy from | D163: sum | E163: =SUM(E153:E162) -> 0.0004504564138
B164: table above | D164: drive sum to min. with solver (setting on the right)
B166: Dphi = a_t(H)*Dt^b_t | H166: Dt(Dphi = 1) = | I166: =(1/a_t)^(1/b_t) -> 9.245694398 | J166: °C
H167: Dt_tot,40k = | I167: =(1/a_t)^(1/b_t) -> 9.245694398 | J167: °C
B168: General equation with modified a_t(H) from Dt_tot(H):
B169: Dt_tot = a_tot*H + b_tot | F169: see below
B170: a_t(H) = 1/(Dt_tot(H)^b_t)
B171: Dphi = a_t(H)*((H - b_H)/a_H - t)^b_t | F171: see above
B172: phi = 1 - Dphi
B174: Important for the approximate equation for the Schmidt-Appleman-Diagram:
B175: H_SAC = f (t_SAC), to answer the question: "At what altitude do contrails start to form depending on temperature?"
B177: t_SAC | C177: °C | D177: =D11 -> -34.17165785 | E177: =E11 -> -36.55699594 | F177: -38.98321546 | G177: -41.45368661 | H177: -41.99706015 | I177: -43.93614974 | J177: -46.35868655 | K177: -48.72013543 | L177: -51.02284194 | M177: -53.26904402 | N177: -55.46088519 | O177: -57.60030236
B178: H_SAC | C178: ft | D178: =D8 -> 20000 | E178: =E8 -> 25000 | F178: 30000 | G178: 35000 | H178: 36089 | I178: 40000 | J178: 45000 | K178: 50000 | L178: 55000 | M178: 60000 | N178: 65000 | O178: 70000
B181: a_H | C181: -2118.8 | D181: ft/°C | E181: from trendline
B182: b_H | C182: -52772 | D182: ft | E182: from trendline
B185: H_SAC = a_H*t _SAC+ b_H
B195: With the above, we obtain an equation:
B196: phi = 1 - a_t*(((H - b_H)*1/a_H) - t)^b_t
B198: This means for a relative humidity larger than phi, we will have a contrail.
B199: We will have a persistent contrail, if the relative humidity is much larger than RH_min. For RH_min see Tab "SAC".
A203: H_SAC | C203: ft | D203: 20000 | E203: 25000 | F203: 30000 | G203: 35000 | H203: =H_T -> 36089 | I203: 40000 | J203: 45000 | K203: 50000 | L203: 55000 | M203: 60000 | N203: 65000 | O203: 70000
A204: Dt,tot from SAD | C204: °C | D204: =D13 -> 10.1918078 | E204: 9.960438578 | F204: 9.727825515 | G204: 9.493800333 | H204: 9.44270903 | I204: 9.261505613 | J204: 9.03759119 | K204: 8.821958586 | L204: 8.61420277 | M204: 8.413930196 | N204: 8.220751567 | O204: 8.034399617
A205: Dt,tot calculated (a) | C205: °C | D205: =a_tot*D203+b_tot -> 10.15428 | E205: 9.93735 | F205: 9.72042 | G205: 9.50349 | H205: 9.456242646 | I205: 9.28656 | J205: 9.06963 | K205: 8.8527 | L205: 8.63577 | M205: 8.41884 | N205: 8.20191 | O205: 7.98498
A206: Dt,tot calculated (b) | C206: °C | D206: =t_SAC_0_100-t_SAC_0_0-(L_SAC_100-L_SAC_0)*D$203 -> 10.1542 | E206: 9.93725 | F206: 9.7203 | G206: 9.50335 | H206: 9.45609829 | I206: 9.2864 | J206: 9.06945 | K206: 8.8525 | L206: 8.63555 | M206: 8.4186 | N206: 8.20165 | O206: 7.9847
C208: a_tot | D208: -4.3386e-05 | E208: °C/ft | F208: from trendline
C209: b_tot | D209: 11.022 | E209: °C | F209: from trendline
A211: Dt,tot calculated (a) | C211: Dt_tot = a_tot*H + b_tot
A213: Dt,tot calculated (b) | C213: Dt_tot = t_SAC_0_100-t_SAC_0_0-(L_SAC_100-L_SAC_0)*H
A222: Evaluating and Planning Flights for Contrail Avoidance
A223: t_SAC = f ( H_SAC), to answer the question: "At what temperature do contrails start (and end) to form depending on altitude?"
A225: H_SAC | C225: ft | D225: =D8 -> 20000 | E225: =E8 -> 25000 | F225: 30000 | G225: 35000 | H225: 36089 | I225: 40000 | J225: 45000 | K225: 50000 | L225: 55000 | M225: 60000 | N225: 65000 | O225: 70000
A226: t_SAC,100 | C226: °C | D226: =D11 -> -34.17165785 | E226: =E11 -> -36.55699594 | F226: -38.98321546 | G226: -41.45368661 | H226: -41.99706015 | I226: -43.93614974 | J226: -46.35868655 | K226: -48.72013543 | L226: -51.02284194 | M226: -53.26904402 | N226: -55.46088519 | O226: -57.60030236
A227: t_SAC,0 | C227: °C | D227: =D12 -> -44.36346564 | E227: =E12 -> -46.51743452 | F227: -48.71104098 | G227: -50.94748695 | H227: -51.43976918 | I227: -53.19765535 | J227: -55.39627774 | K227: -57.54209402 | L227: -59.63704471 | M227: -61.68297421 | N227: -63.68163676 | O227: -65.63470197
A228: Dt,tot | C228: °C | D228: =D226-D227 -> 10.1918078 | E228: 9.960438578 | F228: 9.727825515 | G228: 9.493800333 | H228: 9.44270903 | I228: 9.261505613 | J228: 9.03759119 | K228: 8.821958586 | L228: 8.61420277 | M228: 8.413930196 | N228: 8.220751567 | O228: 8.034399617
A229: average Dt,tot | C229: °C | D229: =AVERAGE(D228:O228) -> 9.101743399
A230: t_ICAO,H_T=36089 ft | C230: °C | D230: =IF(D$225<H_T,t_0-L*D$225,t_0-L*H_T) -> -24.624 | E230: -34.53 | F230: -44.436 | G230: -54.342 | H230: -56.4995268 | I230: -56.4995268 | J230: -56.4995268 | K230: -56.4995268 | L230: -56.4995268 | M230: -56.4995268 | N230: -56.4995268 | O230: -56.4995268
A231: t_ICAO,H_T,pole | C231: °C | D231: =IF(D$225<H_T_pole,t_0-L*D$225,t_T_pole) -> -24.624 | E231: -34.53 | F231: -44.436 | G231: -44.436 | H231: -44.436 | I231: -44.436 | J231: -44.436 | K231: -44.436 | L231: -44.436 | M231: -44.436 | N231: -44.436 | O231: -44.436
A232: t_ICAO,H_T,lat,tropo | C232: °C | D232: =t_0_lat-L*D$225 -> -19.624 | E232: -29.53 | F232: -39.436 | G232: -49.342 | H232: -51.4995268 | I232: -59.248 | J232: -69.154 | K232: -79.06 | L232: -88.966 | M232: -98.872 | N232: -108.778 | O232: -118.684
A233: t_ICAO,H_T,lat,strato | C233: °C | D233: =t_T_lat -> -53.64833568 | E233: -53.64833568 | F233: -53.64833568 | G233: -53.64833568 | H233: -53.64833568 | I233: -53.64833568 | J233: -53.64833568 | K233: -53.64833568 | L233: -53.64833568 | M233: -53.64833568 | N233: -53.64833568 | O233: -53.64833568
A234: t_ICAO, H_T,equator | C234: °C | D234: =IF(D$225<H_T_equator,t_0-L*D$225,t_T_equator) -> -24.624 | E234: -34.53 | F234: -44.436 | G234: -54.342 | H234: -56.4995268 | I234: -64.248 | J234: -74.154 | K234: -84.06 | L234: -84.06 | M234: -84.06 | N234: -84.06 | O234: -84.06
A236: m/ft | B236: 0.3048
A237: t_0,lat | B237: 20 | C237: °C | D237: 15 | E237: °C (ICAO)
A238: H_T,pole | B238: 30000 | C238: ft | D238: =H_T_pole*m_ft/1000 -> 9.144 | E238: km
A239: Latitude, B | B239: 53.5 | C239: deg | D239: 53.5 | E239: deg (Hamburg)
A240: H_T,lat(B) | B240: =D240/m_ft*1000 -> 37173.59968 | C240: ft | D240: =a_lat*(1+COS(2*B*PI()/180))+b_lat -> 11.33051318 | E240: km
A241: H_T,lat | B241: =B240 -> 37173.59968 | C241: ft | D241: =H_T_lat*m_ft/1000 -> 11.33051318 | E241: km
A242: H_T,equator | B242: 50000 | C242: ft | D242: =H_T_equator*m_ft/1000 -> 15.24 | E242: km
A243: t_T,pole | B243: =t_0-L*H_T_pole -> -44.436 | C243: °C
A244: t_T | B244: =t_0-L*H_T -> -56.4995268 | C244: °C
A245: t_T,lat | B245: =t_0_lat-L*H_T_lat -> -53.64833568 | C245: °C
A246: t_T,equator | B246: =t_0-L*H_T_equator -> -84.06 | C246: °C
A247: L_SAC,0 | B247: 0.00042832 | C247: °C/ft | D247: from trendline
A248: L_SAC,100 | B248: 0.00047171 | C248: °C/ft | D248: from trendline
... 61 more rows

Sheet RH
A1: Literature Review: Relative Humidity, RH
A3: Klaus P. Hoinka, 1999. Temperature, Humidity, and Wind at the Global Tropopause. In: Monthly Weather Review, Vol. 127 (1999), No. 10, pp. 2248–2265.
A4: https://doi.org/10.1175/1520-0493(1999)127%3C2248:THAWAT%3E2.0.CO;2
A32: Mean annual rh (%) at the global tropopause (1979–93; 1200 UTC). The increment is 5%.
A33: Shading in the relative humidity field indicates 0%–10% (none), 10%–20% (weak), 20%–30% (moderate), 30%–40% (strong), and greater than 40% (very strong).
A34: Figure 8
A37: RUZMAIKIN, Alexander, AUMANN, Hartmut H., MANNING, Evan M. , 2014. Relative Humidity in the Troposphere with AIRS . In: Journal of the Atmospheric Sciences, Vol. 71 (2014), No. 7, pp. 2516–2533.
A38: https://doi.org/10.1175/JAS-D-13-0363.1
A92: Zonally averaged, nonsaturated, latitude–height distributions of RH for (left) January and (right) July in (top to bottom) 2003, 2007, and 2011.
A93: The colored RH (%) shadings of 10, 30, 60, 80, 90, 100 are displayed and RH is only plotted for good-quality data (QC = 0, 1).
A94: White areas indicate that there are no retrievals of this quality or the RH < 10%.
A95: Figure 1
A136: Height vs latitude RH climatologies of (left) January and (right) July from AIRS 11 yr of measurements (1 Sep 2002–31 Aug 2013).
A137: Figure 2
A192: The RH profiles in the tropics for (left) January and (right) July in (top to bottom) 2003, 2007, and 2011.
A193: In all cases, with a slight exception of January 2011, the minimum RH is reached at 300 hPa.
A194: Figure 4
